Cogmind - Beta 15 @@@ ROGUE MODE // 2025.08.21 @ 19:49:57 Player: delto Result: Core destroyed Performance ------------- Evolutions (0) 0 Regions Visited (3) 600 Robots Destroyed (11) 55 Value Destroyed (173) 173 Prototype IDs (0) 0 Alien Tech Used (0) 0 Bonus (0) 0 TOTAL SCORE: 828 Bonus ------- None Cogmind --------- Core Integrity 0/250 Matter 266/300 Energy 118/125 System Corruption 0% Temperature Cool (0) Movement Hovering (80) Location -10/Subcaves Parts ------- > --- POWER (1) -------- Light Ion Engine > --- PROPULSION (2) --- Combat Airjet > --- UTILITY (2) ------ Machine Analyzer > --- WEAPON (2) ------- Medium Laser Mining Claw > --- INVENTORY (5) ---- Light Ion Engine Light Ion Engine Compact Wheel Improved Terrain Scanner Peak State ------------ > --- POWER ------------ Ion Engine > --- PROPULSION ------- Combat Airjet > --- UTILITY ---------- Improved Terrain Scanner Tractor Beam > --- WEAPON ----------- Medium Laser Heavy Battle Rifle > --- INVENTORY -------- Light Ion Engine Light Ion Engine Compact Wheel Mining Claw [Rating: 15] Favorites ----------- Power Ion Engine Engine Ion Engine Propulsion Wheel Treads Light Treads Wheel Wheel Hover Unit Combat Airjet Utility Improved Terrain Scanner Device Improved Terrain Scanner Storage Small Storage Unit Processor Machine Analyzer Weapon Medium Laser Energy Gun Medium Laser Ballistic Gun Light Assault Rifle Slashing Weapon Mining Claw Build | -11 -10 -10 -10 ------- Run | Yrd Mat Min Sub Slots Evolved . | . . . . Power . | . . . . Propulsion . | . . . . Utility . | . . . . Weapon . | . . . . Parts Attached 15 | 8 . 6 1 Power 2 | 1 . 1 . Engine 2 | 1 . 1 . Core . | . . . . Reactor . | . . . . Propulsion 4 | 2 . 2 . Treads 1 | 1 . . . Leg . | . . . . Wheel 2 | 1 . 1 . Hover 1 | . . 1 . Flight . | . . . . Utility 5 | 3 . 1 1 Device 3 | 2 . 1 . Storage 1 | 1 . . . Processor 1 | . . . 1 Hackware . | . . . . Protection . | . . . . Artifact . | . . . . Weapon 4 | 2 . 2 . Energy Gun 1 | 1 . . . Energy Cannon . | . . . . Ballistic Gun 2 | 1 . 1 . Ballistic Cannon . | . . . . Launcher . | . . . . Special Weapon . | . . . . Impact Weapon . | . . . . Slashing Weapon 1 | . . 1 . Piercing Weapon . | . . . . Special Melee Weapon . | . . . . Unidentified Prototypes . | . . . . Parts Lost 5 | . . 4 1 Power . | . . . . Propulsion 2 | . . 2 . Utility 2 | . . 2 . Weapon 1 | . . . 1 Highest Loss Streak 3 | . . 3 1 To Critical Strikes . | . . . . Average Backups 4 | 4 5 4 3 Power 1 | . 2 1 2 Propulsion 1 | 2 1 . 1 Utility . | . 1 . . Weapon 1 | . 1 1 . Tool/Special . | . . . . Unused Backups 6 | 4 . . 2 Power 2 | . . . 2 Propulsion 3 | 3 . . . Utility . | . . . . Weapon 1 | 1 . . . Tool/Special . | . . . . Average Slot Usage (%) 84 | . 100 84 71 Engine 14 | . 14 14 14 Treads 7 | . 14 8 . Wheel 7 | . 14 8 . Hover 6 | . . 5 14 Device 22 | . 28 24 14 Energy Gun 8 | . 14 8 1 Ballistic Gun 13 | . 14 14 12 Slashing Weapon 3 | . . . 14 Peak Build Rating 15 | 9 9 15 14 Average Rating 10 | 5 9 11 13 On Entrance 8 | . 9 9 14 Naked Turns . | . . . . Heaviest Build 14 | 14 10 13 10 Greatest Support 20 | 10 10 20 12 Greatest Overweight (x) 3 | 1 . 3 . Average Overweight (x) . | . . . . Largest Inventory Capacity 8 | 8 5 5 5 Average Capacity 5 | 7 5 5 5 Most Carried 7 | 7 5 5 4 Average Carried 4 | 4 4 4 3 Final Capacity 5 | 5 5 5 5 Final Carried 5 | 5 5 4 4 Class Distribution -------------------- 100% | Mutant Dominant Class ---------------- Mutant | -10/Materials Mutant | -10/Mines Mutant | -10/Subcaves Resources | -11 -10 -10 -10 ----------- Run | Yrd Mat Min Sub Matter Collected 383 | 293 . 90 . Remotely 50 | . . 50 . Salvage Created 350 | 118 . 172 60 Parts 19 | 6 . 13 . Haulers Intercepted . | . . . . Recyclers Shooed . | . . . . Parts Field Recycled . | . . . . Retrieved Matter . | . . . . Parts Self-Destructed . | . . . . Prevented . | . . . . Kills | -11 -10 -10 -10 ------- Run | Yrd Mat Min Sub Combat Hostiles Destroyed 12 | . . 11 1 Guns 12 | . . 11 1 Classes Destroyed 6 | 2 . 3 1 Tunneler 2 | 2 . . . Recycler 1 | 1 . . . Swarmer 6 | . . 6 . Demolisher 1 | . . 1 . Subdweller 1 | . . . 1 Assembled 4 | . . 4 . Best Kill Streak 4 | 2 . 4 1 Combat Bots Only 4 | . . 4 1 Max Kills in Single Turn 1 | 1 . 1 1 Gunslinging . | . . . . Exploded . | . . . . Melee . | . . . . Uniques/NPCs Destroyed . | . . . . Combat | -11 -10 -10 -10 -------- Run | Yrd Mat Min Sub Hostile Shots Fired 58 | . . 46 12 Missed 14 | . . 9 5 Hits 44 | . . 37 7 Melee 2 | . . 2 . Projectile 42 | . . 35 7 AOE 5 | . . 5 . Part Disruptions 1 | . . 1 . Damage Taken 788 | . . 610 178 Core 262 | . . 151 111 Absorbed by Shields . | . . . . Core Remaining (%) 100 | 100 . . . Volleys Fired 46 | 13 . 23 10 Largest 2 | 2 . 2 1 Hottest 70 | 70 . 70 50 Shots Fired 71 | 26 . 35 10 Gun 71 | 26 . 35 10 Cannon . | . . . . Launcher . | . . . . Special . | . . . . Kinetic 39 | 13 . 23 3 Thermal 32 | 13 . 12 7 Explosive . | . . . . Electromagnetic . | . . . . Robot Hit Streak 11 | 6 . 10 11 Robot Miss Streak 4 | 2 . 4 . Penetration Max . | . . . . Secondary Targets . | . . . . Shots Hit Robots 52 | 18 . 24 10 Core Hits 24 | 5 . 16 3 Critical Kills . | . . . . Critical Parts Destroyed . | . . . . Critical Strikes 6 | 1 . 2 3 Burn 6 | 1 . 2 3 Melee Attacks 1 | . . 1 . Impact . | . . . . Slashing 1 | . . 1 . Piercing . | . . . . Sneak Attacks . | . . . . Combat Hostiles . | . . . . Follow-up Attacks . | . . . . Damage Inflicted 667 | 191 . 342 134 Guns 667 | 191 . 342 134 Cannons . | . . . . Explosions . | . . . . Melee . | . . . . Ramming . | . . . . Kinetic 331 | 65 . 217 49 Thermal 336 | 126 . 125 85 Explosive . | . . . . Electromagnetic . | . . . . Impact . | . . . . Slashing . | . . . . Piercing . | . . . . Highest Corruption . | . . . . Average Corruption . | . . . . Corruption Purged . | . . . . Corruption Blocked . | . . . . Overload Shots . | . . . . Overflow Damage . | . . . . Projectiles . | . . . . Explosions . | . . . . Melee . | . . . . Knockbacks . | . . . . Impact . | . . . . Kinetic . | . . . . Secondary . | . . . . Self-Inflicted Damage . | . . . . Shots . | . . . . Rammed . | . . . . Targets Rammed . | . . . . Kicked . | . . . . Crushed . | . . . . Highest Temperature 230 | 100 . 230 . Average Temperature 65 | 41 . 88 . Received Heat Transfer 131 | . . 80 51 Siege Activations . | . . . . Martial Activations . | . . . . Shielding Activations . | . . . . Robots Disrupted . | . . . . Combat Hostiles . | . . . . Robots Corrupted . | . . . . Combat Hostiles . | . . . . Parts Fried . | . . . . Impact Corruptions . | . . . . Robots Melted . | . . . . Combat Hostiles . | . . . . Parts Melted 1 | . . . 1 Heat Transferred 1443 | 444 . 518 481 Parts Sabotaged . | . . . . Parts Stolen . | . . . . Parts Stripped . | . . . . Power Chain Reactions . | . . . . Alert | -11 -10 -10 -10 ------- Run | Yrd Mat Min Sub Maximum Alert Level . | . . . . Low Security (%) 100 | 100 100 100 . Level 1 . | . . . . Level 2 . | . . . . Level 3 . | . . . . Level 4 . | . . . . Level 5 . | . . . . High Security . | . . . . Max Security . | . . . . Peak Influence 105 | 5 . 105 . Initial . | . . . . Average 16 | 1 . 27 . Influence Increases 207 | 15 . 192 . Destroy 0b10 Robot/C 140 | . . 140 . Destroy 0b10 Robot/NC 15 | 15 . . . Destroy Leader 20 | . . 20 . Destroy Structure 2 | . . 2 . Lose Combat Pursuer 30 | . . 30 . Influence Decreases 207 | 15 . 113 79 Entered New Map 42 | . . . 42 Time Decay 155 | 15 . 103 37 Lost Part 10 | . . 10 . Squads Dispatched . | . . . . Investigation . | . . . . Extermination . | . . . . Reinforcement . | . . . . Assault . | . . . . Garrison . | . . . . Intercept . | . . . . Searches Triggered . | . . . . Construction Impeded . | . . . . Haulers Reinforced . | . . . . Active Scanning Responses . | . . . . Cargo Convoy Interrupts . | . . . . Stealth | -11 -10 -10 -10 --------- Run | Yrd Mat Min Sub Distress Signals . | . . . . Communications Jammed . | . . . . Distress Signals . | . . . . Times Spotted 16 | . 1 13 2 Peak Tracking Total 14 | . 2 14 2 Tactical Retreats 3 | . . 3 . Traps | -11 -10 -10 -10 ------- Run | Yrd Mat Min Sub Traps Triggered . | . . . . Indirectly . | . . . . Trap Hack Attempts . | . . . . Triggered . | . . . . Disarmed . | . . . . Reprogrammed . | . . . . Reused . | . . . . Traps Extracted . | . . . . Installed . | . . . . Triggered . | . . . . Machines | -11 -10 -10 -10 ---------- Run | Yrd Mat Min Sub Machines Disabled . | . . . . Max in Single Turn . | . . . . Machines Repaired . | . . . . Machines Dismantled . | . . . . Machines Sabotaged . | . . . . Overloaded Fab Kills . | . . . . Hacking | -11 -10 -10 -10 --------- Run | Yrd Mat Min Sub Machines Accessed . | . . . . Terminals . | . . . . Fabricators . | . . . . Repair Stations . | . . . . Recycling Units . | . . . . Scanalyzers . | . . . . Garrison Access . | . . . . Total Hacks . | . . . . Successful . | . . . . Failed . | . . . . Catastrophic . | . . . . Database Lockouts . | . . . . Manual . | . . . . Terminals . | . . . . Fabricators . | . . . . Repair Stations . | . . . . Recycling Units . | . . . . Scanalyzers . | . . . . Garrison Access . | . . . . Terminal Hacks . | . . . . Fabricator Hacks . | . . . . Repair Station Hacks . | . . . . Recycling Unit Hacks . | . . . . Scanalyzer . | . . . . Garrison Access Hacks . | . . . . Unauthorized Hacks . | . . . . Terminals . | . . . . Fabricators . | . . . . Repair Stations . | . . . . Recycling Units . | . . . . Scanalyzers . | . . . . Garrison Access . | . . . . Data Cores Recovered . | . . . . Used . | . . . . Hacking Detections . | . . . . Full Trace Events . | . . . . Feedback Events . | . . . . Feedback Blocked . | . . . . Robot Schematics Acquired . | . . . . Robots Built . | . . . . Authchips . | . . . . Time . | . . . . Total Robot Build Rating . | . . . . Part Schematics Acquired . | . . . . Parts Built . | . . . . Authchips . | . . . . Time . | . . . . Total Part Build Rating . | . . . . Parts Repaired . | . . . . Time . | . . . . Parts Recycled . | . . . . Recycled Matter . | . . . . Retrieved Matter . | . . . . Retrieved Components . | . . . . Parts Scanalyzed . | . . . . Part Schematics Acquired . | . . . . Parts Damaged . | . . . . Bothacking | -11 -10 -10 -10 ------------ Run | Yrd Mat Min Sub Used RIF Installer . | . . . . Robots Hacked . | . . . . Non-combat . | . . . . Combat . | . . . . Robot Hacks Applied . | . . . . Relay Couplers Released . | . . . . Fabnet Peak Effective % . | . . . . Robots Rewired . | . . . . Allies Hacked . | . . . . Hacks Repelled . | . . . . Allies | -11 -10 -10 -10 -------- Run | Yrd Mat Min Sub Total Allies . | . . . . Largest Group . | . . . . Highest-Rated Group . | . . . . Highest-Rated Ally . | . . . . Total Orders . | . . . . Ally Attacks . | . . . . Total Damage . | . . . . Kills . | . . . . Allies Corrupted . | . . . . Allies Melted . | . . . . Intel | -11 -10 -10 -10 ------- Run | Yrd Mat Min Sub Active Infowar (turns) 682 | 27 106 407 142 Terrain 681 | 27 106 407 141 Seismic 359 | 21 106 232 . Machine Analysis 3 | . . . 3 Robot Analysis Total . | . . . . Derelict Logs Recovered 1 | . . 1 . Drone Launches . | . . . . Drone Recoveries . | . . . . Exploration | -11 -10 -10 -10 ------------- Run | Yrd Mat Min Sub Turns Passed 817 | 162 106 407 142 Spaces Moved 762 | 110 131 373 148 Core 21 | 13 . 8 . Treads 20 | . . 20 . Legs . | . . . . Wheels 411 | 97 131 183 . Hover 310 | . . 162 148 Flight . | . . . . Fastest Speed 50 | 50 80 80 80 Average Speed 86 | 88 80 90 80 Slowest Speed 200 | 100 80 200 80 Overloaded Moves . | . . . . Propulsion Burnouts . | . . . . Robots Hopped . | . . . . Potential Cave-ins 4 | . . 4 . Cave-ins Triggered . | . . . . Exploration Rate (%) 25 | 4 23 66 9 Regions Visited 3 Branch Regions 2 Pre-discovered Areas . | . . . . Known Exits Taken . | . . . . Unknown Exits Taken 3 | 1 1 1 . Scrap Searched 1 | . . 1 . Spaces Dug 1 | . . 1 . Terrain Destroyed 2 | . . 2 . Melee 1 | . . 1 . Projectile 1 | . . 1 . AOE . | . . . . Terrain Rammed . | . . . . Walls Destroyed . | . . . . Machines Disabled . | . . . . Actions | -11 -10 -10 -10 --------- Run | Yrd Mat Min Sub Total 856 | 153 132 410 161 Wait . | . . . . Move 759 | 109 130 372 148 Hop . | . . . . Pick Up 22 | 18 1 3 . Fast Attach 2 | . . 1 1 Attach 14 | 8 . 5 1 Detach 3 | . . 2 1 Swap . | . . . . Drop 9 | 5 1 3 . Fire 46 | 13 . 23 10 Melee 1 | . . 1 . Ram . | . . . . Kick . | . . . . Crush . | . . . . Escape Stasis . | . . . . Rewire . | . . . . Trap . | . . . . Miscellaneous . | . . . . Route ------- -11/Scrapyard -10/Materials -10/Mines -10/Subcaves History --------- Turn | Location | Event 11 | -11/Scrapyard | Discovered new exit (range 16) 163 | -11/Scrapyard | Entered Materials 265 | -10/Materials | Discovered new exit (range 6) 269 | -10/Materials | Entered Mines 312 | -10/Mines | Assembled infested the area 315 | -10/Mines | Build established: Mutant 420 | -10/Mines | A weapon hastily lodged in a ceiling crevice suddenly fell to the ground 502 | -10/Mines | Core integrity fell below 50% 534 | -10/Mines | Lost 3 parts (2n1u) 657 | -10/Mines | Discovered new exit (range 7) 660 | -10/Mines | Learned 2 Materials zone layouts 676 | -10/Mines | Entered Subcaves 677 | -10/Subcaves | Approached by a straggling Scientist 793 | -10/Subcaves | Core integrity fell below 20% 818 | -10/Subcaves | Core destroyed Last Messages --------------- LOCATION=UNKNOWN AMBIENT_HEAT=-10 GOAL=ESCAPE 00677_ 0V-IKW(c): "Thank the algorithms! I was beginning to lose hope I'd never make it past all the Subs lurking out here." 00680_ 0V-IKW(c): "Hey, let me tag along and I can get us both out of this nasty situation. At least I think I can... The group I got separated from was talking about a shortcut back to the UFD." 0V-IKW(c): "I think it's somewhere northeast of here" 00789_ 0V-IKW(c) destroyed. 00796_ Hvy. Battle Rifle destroyed. 00798_ 7G-MKJ(R) suffers critical hit (Burn). 00802_ 7G-MKJ(R) heat spikes uncontrollably. 00805_ 7G-MKJ(R) heat short circuits Sub. Monowheel. 00806_ 7G-MKJ(R) suffers critical hit (Burn). 00807_ 7G-MKJ(R) overheating. 00810_ Sub. Laser melted. 00810_ 7G-MKJ(R) destroyed. 00815_ Acquired Machine Analyzer. 00818_ Tech Extrapolator violently self-destructs. Map ----- +----------------------------------------------------+ | ?????????????????????????????????????????????????? | | ?????????????????????????????????????????????????? | | ?????????????????????????????????????????????????? | | ?????????????????????????????????????????????????? | | ?????????????????????????????????????????????????? | | ?????????????????????????????????????????????????? | | ?????????????????????????????????????????????????? | | ?????????????????????????????????????????????????? | | ?????????????????????????????????????????????????? | | ?????????????????????????????????????????????????? | | ?????????????????????????????????????????????????? | | ?????????????????????????????????????????????????? | | ?????????????????????????????????????????????????? | | ?????????????????????????????????????????????????? | | ?????????????????????#???????????????????????????? | | ???????????????#?????????????#???????????????????? | | ?????????????????????????????????????????????????? | | ??????????????????????????????#??????????????????? | | ?????????????????????????????????????????????????? | | ????????## ??????????????????????????????????????? | | ????????? ???????????#??????????????????? ?????? | | ?????????# ??????????####??????????????? ???????? | | ?????????# ?#???##### "#########???????????????? | | ??????????# ###### ## ## #""#???????????????? | | ???????????# #???????????????? | | ?????????### @ ##? ????????#????? | | ??????????# & % ## #??????????##????? | | ?????????## %& ###### ??#??? ?????????? | | ??????#??# ## ###???# ???????????????? | | ?????# ######????# ??????????????? | | ????# ## #?## ######## #??????? ??????? | | ????# ## ##?## ##??##???? ??#??????? | | ?????# #### #??????????????????? | | ??????# ######?????????????? | | ??????###### ## ##????????????? | | ???????????# ## #### ### #????????????? | | ??????????## ?## #?## #?# #????????????# | | ?????????## ##??## ## #### ###??????????? | | ????????? #???### ##?## #??????????? | | ????????# ####?# #### ###??????????? | | ????????# #### ##???????????? | | ???????# #?# ##??????????? | | ???????## ?# ### #??????????? | | ????????# #?# #??????????? | | ?????????# #?#"# ##??????????? | | ?????????## ???## #######???????????? | | ????? ?#### ????## # ##???????#????????? | | ???????? ?????### ### #?????????????????? | | ????????? ???????# ### #?????????????????? | | #?????????# ??????## #?# #????????????????? | +----------------------------------------------------+ Best States ------------- Heat Dissipation 25 Energy Generation 10 Energy Capacity 250 Matter Stores 300 Matter Capacity 300 Sight Range 16 Terrain Scan Range 16 Terrain Scan Density 10 Evasion (%) 49 Recoil Reduction 1 Item Schematics ----------------- None Robot Schematics ------------------ None Fabricated ------------ Nothing Repaired ---------- Nothing Alien Tech Used ----------------- None Achievements -------------- None Challenges ------------ None Game ------ Seed CloakHeavyChip Manual? 0 Play Time 00:22:26 Cumulative 55.0 hours Start 2025.08.21 @ 16:47:55 End 2025.08.21 @ 19:49:57 Sessions 4 Manual Loads 0 Difficulty Rogue Special Mode None Game No. 70 Rogue 70 Adventurer 0 Explorer 0 Win Type - Total 0 Types 0/0/0/0/0/0/0/0/0/0 Lore% 11 Gallery% 34 Achievement% 29 Wizard Run 0 Options --------- Layout 0 ASCII 0 Keyboard 0 Movement Mouse Keybinds 0 Fullscreen 1 Font 24/Smallcaps Map View 76x50 Zoom Use 0% Tactical HUD 1 Map Filters NONE Filters NONE Steam 1 RUN: 22c13381-bcf7-4da4-92cf-4e0914e77d18